[Event "21st Bangkok CC Open 2024"]
[Site "Bangkok"]
[Date "2024.04.20"]
[Round "8.1"]
[White "Bernadskiy, Vitaliy"]
[Black "Zhao, Zong-Yuan"]
[Result "1-0"]
[ECO "C07"]
[WhiteElo "2561"]
[BlackElo "2485"]
[Annotator "TA"]
[PlyCount "67"]
[EventDate "2024.04.13"]
[EventType "swiss"]
[EventCountry "THA"]
[SourceTitle "playchess.com"]
[Source "ChessBase"]
[SourceQuality "1"]
[TimeControl "40/5400+30:1800+30"]

{[%evp 10,67,28,20,18,10,17,16,21,0,0,0,0,0,4,0,13,0,25,0,30,0,15,0,47,12,43,50,64,58,92,79,120,105,119,106,122,133,309,316,271,259,339,375,367,364,532,543,550,567,601,603,614,606,730,731,6047,5469,29980,29979]} 1. e4 {[%emt 0:00:04]} e6 {[%emt 0:05:47]} 2. d4 {[%emt 0:01:15]} d5 {[%emt 0:00:06]} 3. Nd2 {[%emt 0:00:02]} c5 {[%emt 0:00:45]} 4. exd5 {[%emt 0:00:06]} Qxd5 {[%emt 0:00:06]} 5. Ngf3 {[%emt 0:00:04]} cxd4 {[%emt 0:00:06]} 6. Bc4 {[%emt 0:00:03]} Qd7 {[%emt 0:00:05]} 7. O-O {[%emt 0:00:06][%mdl 1024] White has compensation.} Nc6 {[%emt 0:00:19]} 8. Nb3 {[%emt 0:00:19][%cal Rb3d4]} Nf6 {[%emt 0:01:29] The position is equal.} 9. Qe2 {[%emt 0:01:52]} a6 {[%emt 0:00:27]} 10. a4 {[%emt 0:00:23]} Bd6 {[%emt 0:01:07]} 11. Rd1 {[%emt 0:00:08]} Qc7 {[%emt 0:00:34]} 12. Nbxd4 {[%emt 0:00:41]} Ne7 {[%emt 0:00:05] [#] Prevents Nf5.} 13. Bb5+ $1 {[%emt 0:03:19]} Bd7 {[%emt 0:00:11]} (13... axb5 14. Nxb5 Bxh2+ 15. Nxh2 $18) 14. Bxd7+ {[%emt 0:00:05]} Nxd7 {[%emt 0:00:23]} 15. a5 {[%emt 0:04:33]} e5 {[%emt 0:07:37]} 16. Nb3 {[%emt 0:02:09][%cal Bd4b3,Bb3d2,Bd2c4][%mdl 32]} Nf6 {[%emt 0:00:16]} (16... Rd8 $11) 17. g3 {[%emt 0:02:24]} h6 {[%emt 0:11:31] Repels Bg5} (17... O-O $5) 18. Be3 {[%emt 0:11:02] Hoping for Bb6.} O-O {[%emt 0:21:04]} 19. Bb6 {[%emt 0:00:35]} Qb8 {[%emt 0:02:16]} 20. Nbd2 {[%emt 0:00:27]} Ng6 {[%emt 0:12:41]} 21. Nc4 {[%emt 0:00:14]} Bc7 {[%emt 0:00:29]} 22. Nfd2 {[%emt 0:00:21] White has more active pieces.} Qc8 {[%emt 0:15:25]} 23. Ne4 {[%emt 0:01:22]} Nd7 {[%emt 0:00:07] A mistake that costs the game.} (23... Nxe4 $16 {was necessary.} 24. Qxe4 f5 25. Qd5+ Kh8) 24. Ra3 $18 {[%emt 0:03:50][%cal Ba1a3,Ba3f3,Bf3f6][%mdl 32]} Bxb6 {[%emt 0:03:00]} 25. axb6 {[%emt 0:01:53]} Nf6 {[%emt 0:02:05]} 26. Nxf6+ {[%emt 0:03:59]} gxf6 {[%emt 0:00:01]} 27. Rd6 {[%emt 0:00:16]} Qc5 {[%emt 0:04:18]} (27... Re8 $142 28. Rxf6 Re6) 28. Rf3 {[%emt 0:03:25]} Rac8 {[%emt 0:05:42]} 29. b3 {[%emt 0:00:14]} Rc6 {[%emt 0:00:17]} 30. Rfxf6 {[%emt 0:00:08]} ({Less strong is} 30. Rdxf6 Nf4 31. R3xf4 (31. gxf4 Rxf6 32. Nxe5 Re8 $16) 31... exf4 32. Rxf4 Rg6 $16) 30... Rxd6 {[%emt 0:00:26]} 31. Nxd6 {[%emt 0:00:15] Nf5 would now be deadly.} Qxb6 {[%emt 0:00:53]} 32. Qc4 {[%emt 0:00:17][%csl LRf7,LRg6]} Ne7 {[%emt 0:02:59]} 33. Qg4+ {[%emt 0:00:22]} Kh7 {[%emt 0:00:10] [#]} 34. Ne8 $1 {[%emt 0:00:06][%mdl 512] Weighted Error Value: White=0.04 (flawless) /Black=0.56.  Loses game:     	---       	Black=1      Mistake:       	---       	Black=2      Inaccurate:     	White=2     	Black=5      OK:         	White=17    	Black=7      Best:        	White=2     	---} 1-0

[Event "21st Bangkok CC Open 2024"]
[Site "Bangkok"]
[Date "2024.04.20"]
[Round "8.2"]
[White "Mitrabha, Guha"]
[Black "Urazayev, Arystanbek"]
[Result "1-0"]
[ECO "B14"]
[WhiteElo "2537"]
[BlackElo "2471"]
[Annotator "TA"]
[PlyCount "87"]
[EventDate "2024.04.13"]
[EventType "swiss"]
[EventCountry "THA"]
[SourceTitle "playchess.com"]
[Source "ChessBase"]
[SourceQuality "1"]
[TimeControl "40/5400+30:1800+30"]

{[%evp 14,87,14,0,0,13,17,-6,30,28,38,35,41,31,38,0,25,31,67,79,67,59,64,54,74,82,74,75,68,20,16,-2,27,10,22,18,29,-2,31,12,16,0,0,0,10,12,27,16,22,0,0,0,99,95,100,62,58,64,125,67,177,149,400,393,535,533,532,516,562,562,12842,29977,29977,29978,29978,29977]} 1. d4 {[%emt 0:15:47]} d5 {[%emt 0:00:06]} 2. c4 {[%emt 0:00:36]} e6 {[%emt 0:00:02]} 3. Nc3 {[%emt 0:00:07]} c5 {[%emt 0:02:08]} 4. e3 {[%emt 0:00:43]} Nf6 {[%emt 0:00:43]} 5. Nf3 {[%emt 0:00:40]} Nc6 {[%emt 0:00:24]} 6. cxd5 {[%emt 0:02:39]} exd5 {[%emt 0:01:36]} 7. Bb5 {[%emt 0:00:11]} cxd4 {[%emt 0:00:04]} 8. exd4 {[%emt 0:00:36]} Bd6 {[%emt 0:02:44]} 9. O-O {[%emt 0:00:29]} O-O {[%emt 0:00:18]} 10. Bg5 {[%emt 0:01:17]} Be6 {[%emt 0:01:16] The position is equal.} 11. Re1 {[%emt 0:00:37]} h6 {[%emt 0:05:38]} 12. Bh4 {[%emt 0:00:39]} Rc8 {[%emt 0:00:06]} 13. Ne5 {[%emt 0:01:38]} Be7 {[%emt 0:15:52]} 14. Qa4 {[%emt 0:19:47]} Nxe5 {[%emt 0:33:03]} 15. dxe5 {[%emt 0:00:17]} Nh7 {[%emt 0:06:06]} 16. Bxe7 {[%emt 0:00:31]} Qxe7 {[%emt 0:00:02]} 17. Qxa7 {[%emt 0:02:05]} Qb4 {[%emt 0:00:05]} 18. Bd3 {[%emt 0:09:53]} (18. Qxb7 $2 d4 19. a3 (19. Nd5 $2 Bxd5 20. Qxd5 Rc5 $19) 19... Qb3 $19) 18... Ra8 {[%emt 0:09:26]} 19. Qe3 {[%emt 0:02:01] aiming for a3. White is more active.} d4 {[%emt 0:00:02]} 20. Qf4 {[%emt 0:01:08]} Rfd8 {[%emt 0:04:58]} 21. Rab1 {[%emt 0:10:53]} (21. Red1 $14) 21... Nf8 $1 $11 {[%emt 0:03:17]} 22. Red1 {[%emt 0:03:05]} Bxa2 {[%emt 0:05:15]} 23. Nxa2 {[%emt 0:00:59]} Rxa2 {[%emt 0:00:03]} 24. b3 {[%emt 0:00:37]} Qe7 {[%emt 0:03:26]} 25. b4 {[%emt 0:03:15]} Ne6 {[%emt 0:04:21]} 26. Qe4 {[%emt 0:02:31]} Ng5 {[%emt 0:00:12] Prevents Qh7+} 27. Qe1 {[%emt 0:00:07]} Ne6 {[%emt 0:00:10]} 28. Qe4 {[%emt 0:03:53] Inhibits Nf4.} Ng5 {[%emt 0:00:07] Prevents Qh7+.} 29. Qf5 {[%emt 0:00:10]} g6 {[%emt 0:01:16]} 30. Qf4 {[%emt 0:00:09]} Kg7 {[%emt 0:01:25]} 31. Bc4 {[%emt 0:00:32]} Ra3 {[%emt 0:00:36][%cal Oa3f3]} 32. Rxd4 {[%emt 0:01:08][%cal Of4f6] [#] Threatens to win with Qf6+!} Rxd4 {[%emt 0:01:03]} (32... Rf3 $1 $11 {keeps the balance.} 33. Qd2 (33. gxf3 Rxd4 34. Qf6+ Qxf6 $17) 33... Ne4) 33. Qxd4 $16 {[%emt 0:00:07]} Ne6 {[%emt 0:00:19]} 34. Qb2 {[%emt 0:00:53]} Ra8 {[%emt 0:00:10]} 35. h3 $36 {[%emt 0:00:27][%mdl 2048] White is more active.} Kh7 {[%emt 0:00:22]} (35... Rd8 $14) 36. Qb3 {[%emt 0:00:40]} ({Better is} 36. Rd1 $16) 36... Nf4 {[%emt 0:01:11]} ({Black should try} 36... Nd4 $14 37. Qd3 Qxe5) 37. Re1 {[%emt 0:01:01]} Qg5 $2 {[%emt 0:00:27][%mdl 8192] [#] This move loses the game for Black.} (37... Kg7 $16 {is a better defense.} 38. Re4 Ne6 39. Bxe6 Qxe6 40. Qxe6 Ra1+ 41. Kh2 fxe6) 38. Qf3 $1 $18 {[%emt 0:00:23]} (38. Bxf7 $2 Qxg2#) 38... Kg7 {[%emt 0:00:38]} 39. g3 {[%emt 0:00:37]} Rc8 {[%emt 0:00:29]} 40. Bb3 {[%emt 0:00:34]} ({Stronger than} 40. Qxf4 Qxf4 41. gxf4 Rxc4 $11) 40... Nxh3+ {[%emt 0:00:32]} 41. Kg2 {[%emt 0:31:02]} Qd2 {[%emt 0:01:07]} 42. Qxf7+ {[%emt 0:00:00]} Kh8 {[%emt 0:00:01]} 43. Qf6+ {[%emt 0:00:00]} Kh7 {[%emt 0:00:02]} 44. Rd1 {[%emt 0:00:00] Weighted Error Value: White=0.10 (very precise) /Black=0.29 (precise) .  Loses game:     	---       	Black=1      Mistake:       	White=2     	Black=3      Inaccurate:     	White=3     	Black=6      OK:         	White=15    	Black=9      Best:        	White=1     	Black=3      Strong:       	White=1     	Black=1} 1-0

[Event "21st Bangkok CC Open 2024"]
[Site "Bangkok"]
[Date "2024.04.20"]
[Round "8.3"]
[White "Harsh Suresh"]
[Black "Pranesh M"]
[Result "1/2-1/2"]
[ECO "C28"]
[WhiteElo "2413"]
[BlackElo "2538"]
[Annotator "TA"]
[PlyCount "111"]
[EventDate "2024.04.13"]
[EventType "swiss"]
[EventCountry "THA"]
[SourceTitle "playchess.com"]
[Source "ChessBase"]
[SourceQuality "1"]
[TimeControl "40/5400+30:1800+30"]

{[%evp 41,111,0,0,0,0,0,0,0,0,0,30,5,6,0,45,39,44,39,40,36,28,0,0,0,0,0,0,0,0,0,0,0,0,0,0,0,0,0,0,0,0,0,0,0,0,0,0,0,0,0,0,0,0,0,0,0,0,0,0,0,0,0,0,0,0,0,0,0,0,0,0,0]} 1. e4 {[%emt 0:00:17]} e5 {[%emt 0:02:04]} 2. Nc3 {[%emt 0:00:57]} Nc6 {[%emt 0:00:09]} 3. Bc4 {[%emt 0:00:12]} Nf6 {[%emt 0:00:09]} 4. d3 {[%emt 0:00:11]} Na5 {[%emt 0:00:05]} 5. Bb3 {[%emt 0:00:15]} Nxb3 {[%emt 0:00:10]} 6. axb3 {[%emt 0:00:08]} d5 {[%emt 0:00:04]} 7. Nf3 {[%emt 0:01:00] C28: Vienna Game: 2...Nf6 3 Bc4 Nc6.} dxe4 {[%emt 0:04:58]} 8. dxe4 {[%emt 0:00:31]} Bd6 $146 {[%emt 0:01:58]} ({Predecessor:} 8... Qxd1+ 9. Kxd1 Bd6 10. Bg5 Nd7 11. Ke2 a6 12. Rhd1 Rb8 13. Nd2 b5 14. Nf1 Nc5 {1-0 Rapport,R (2738)-Laznicka,V (2670) Prague Masters 1st 2019 (4.1)}) 9. O-O {[%emt 0:12:37]} h6 {[%emt 0:06:46]} 10. Nd2 {[%emt 0:14:14]} Bg4 {[%emt 0:08:14]} 11. f3 {[%emt 0:03:40]} Be6 {[%emt 0:03:34]} 12. Nc4 {[%emt 0:00:57]} Bc5+ {[%emt 0:01:20]} 13. Kh1 {[%emt 0:00:18]} Nd7 {[%emt 0:02:20]} 14. Qe2 {[%emt 0:01:57]} O-O {[%emt 0:05:36]} 15. Be3 {[%emt 0:01:14]} Bd4 {[%emt 0:04:22]} 16. Bxd4 {[%emt 0:13:52]} exd4 {[%emt 0:00:25]} 17. Nb5 {[%emt 0:00:17]} c5 {[%emt 0:03:15]} 18. Nxa7 {[%emt 0:01:05]} Nb8 {[%emt 0:08:13]} 19. e5 {[%emt 0:09:16]} Bd5 {[%emt 0:03:13]} 20. Nd6 {[%emt 0:01:11]} b6 {[%emt 0:06:28]} 21. Nac8 {[%emt 0:17:04]} Rxa1 {[%emt 0:01:19]} 22. Rxa1 {[%emt 0:00:01]} Nc6 {[%emt 0:01:21]} 23. Qb5 {[%emt 0:04:00]} Nxe5 {[%emt 0:01:41]} 24. Qxb6 {[%emt 0:00:12]} Qxb6 {[%emt 0:01:10]} 25. Nxb6 {[%emt 0:00:03]} Be6 {[%emt 0:00:20]} (25... Rd8 $5 26. Ndc4 Bxc4 27. Nxc4 (27. bxc4 $2 {is the wrong capture.} Rb8 $17) 27... d3 28. cxd3 (28. Nxe5 $2 dxc2 29. h3 Rd1+ $19) 28... Nxd3 $11) 26. Ne4 {[%emt 0:03:33]} Rb8 {[%emt 0:02:14]} 27. Na4 {[%emt 0:01:43]} d3 {[%emt 0:00:24]} 28. cxd3 {[%emt 0:00:37]} ({And not} 28. Nexc5 dxc2 29. Kg1 Bf5 $17 (29... Bxb3 30. Nxb3 Rxb3 31. Rc1 $11)) 28... Nxd3 {[%emt 0:02:20]} 29. Nexc5 {[%emt 0:01:18]} Nxc5 {[%emt 0:00:05]} 30. Nxc5 {[%emt 0:00:05]} Bxb3 {[%emt 0:00:02]} 31. Nxb3 {[%emt 0:01:35]} Rxb3 {[%emt 0:00:05]} 32. Rb1 {[%emt 0:00:15]} f5 {[%emt 0:03:55]} 33. Kg1 {[%emt 0:00:25]} h5 {[%emt 0:03:25]} 34. Kf2 {[%emt 0:01:07]} h4 {[%emt 0:00:51]} 35. h3 {[%emt 0:06:32]} g5 {[%emt 0:00:21]} 36. Ke2 {[%emt 0:00:15]} g4 {[%emt 0:00:41]} 37. hxg4 {[%emt 0:01:47]} fxg4 {[%emt 0:00:03]} 38. fxg4 {[%emt 0:00:12]} Kg7 {[%emt 0:00:25]} 39. Rh1 {[%emt 0:02:58]} Rxb2+ {[%emt 0:00:03]} 40. Kf3 {[%emt 0:00:05]} Rb3+ {[%emt 0:00:08]} 41. Kf4 {[%emt 0:30:16]} Rb2 {[%emt 0:30:03]} 42. Rxh4 {[%emt 0:00:17]} Rxg2 {[%emt 0:00:04]} 43. Rh5 {[%emt 0:00:26]} Rf2+ {[%emt 0:00:03]} 44. Kg3 {[%emt 0:00:07]} Ra2 {[%emt 0:00:05]} 45. Rb5 {[%emt 0:00:06]} Kg6 {[%emt 0:00:05]} 46. Kh4 {[%emt 0:00:07]} Rh2+ {[%emt 0:00:04]} 47. Kg3 {[%emt 0:00:05]} Ra2 {[%emt 0:00:04]} 48. Rb6+ {[%emt 0:00:04]} Kg5 {[%emt 0:00:09]} 49. Rb3 {[%emt 0:00:08]} Rc2 {[%emt 0:00:04]} 50. Rb5+ {[%emt 0:00:08]} Kg6 {[%emt 0:00:02]} 51. Ra5 {[%emt 0:00:08]} Rb2 {[%emt 0:00:07]} 52. Kh4 {[%emt 0:00:06]} Rh2+ {[%emt 0:00:05]} 53. Kg3 {[%emt 0:00:05]} Rb2 {[%emt 0:00:02]} 54. Ra6+ {[%emt 0:00:12]} Kg5 {[%emt 0:00:04]} 55. Ra5+ {[%emt 0:00:11]} Kg6 {[%emt 0:00:04]} 56. Ra6+ {[%emt 0:00:12]} 1/2-1/2

[Event "21st Bangkok CC Open 2024"]
[Site "Bangkok"]
[Date "2024.04.20"]
[Round "8.4"]
[White "Makhnev, Denis"]
[Black "Deepan Chakkravarthy J."]
[Result "1-0"]
[ECO "D51"]
[WhiteElo "2516"]
[BlackElo "2428"]
[Annotator "TA"]
[PlyCount "53"]
[EventDate "2024.04.13"]
[EventType "swiss"]
[EventCountry "THA"]
[SourceTitle "playchess.com"]
[Source "ChessBase"]
[SourceQuality "1"]
[TimeControl "40/5400+30:1800+30"]

{[%evp 12,53,38,17,58,45,50,18,18,30,19,23,18,12,15,19,12,27,26,25,37,29,20,19,63,58,148,148,147,160,148,140,147,150,154,145,206,187,249,254,280,275,305,285]} 1. d4 {[%emt 0:05:54]} Nf6 {[%emt 0:04:05]} 2. c4 {[%emt 0:00:11]} e6 {[%emt 0:00:06]} 3. Nf3 {[%emt 0:00:04]} d5 {[%emt 0:00:11]} 4. Nc3 {[%emt 0:00:07]} c6 {[%emt 0:01:22]} 5. Bg5 {[%emt 0:00:07]} Nbd7 {[%emt 0:00:17]} 6. e3 {[%emt 0:00:49]} h6 {[%emt 0:00:07]} 7. Bh4 {[%emt 0:00:07]} g5 {[%emt 0:00:24]} 8. Bg3 {[%emt 0:00:08]} Nh5 {[%emt 0:00:06]} 9. cxd5 {[%emt 0:00:45]} Nxg3 {[%emt 0:01:18] The position is equal.} 10. hxg3 {[%emt 0:00:06] [#] And now dxe6 would win.} exd5 {[%emt 0:00:26]} 11. Bd3 {[%emt 0:00:09]} Bg7 {[%emt 0:00:10]} 12. Qc2 {[%emt 0:00:26]} Nb6 {[%emt 0:00:49]} 13. O-O {[%emt 0:00:34]} Be6 {[%emt 0:02:24]} 14. b4 {[%emt 0:00:31]} O-O {[%emt 0:03:39]} 15. Rab1 {[%emt 0:00:50]} Nc4 {[%emt 0:18:37]} 16. Bxc4 {[%emt 0:06:25]} dxc4 {[%emt 0:00:17]} 17. b5 {[%emt 0:00:07]} g4 {[%emt 0:12:01]} 18. Nh4 {[%emt 0:01:09] Excellent horsemanship.} Qg5 {[%emt 0:14:47]} ({Black should try} 18... Re8 $14) 19. bxc6 $16 {[%emt 0:05:08]} bxc6 {[%emt 0:00:06]} 20. Ne4 {[%emt 0:00:07]} Qd5 {[%emt 0:07:14]} 21. Nc5 {[%emt 0:01:41]} Rfb8 {[%emt 0:00:02]} 22. Rbc1 {[%emt 0:25:40] White is more active.} Bc8 {[%emt 0:08:09]} 23. Rfd1 {[%emt 0:02:37]} (23. Qxc4 Rb2 $16) 23... a5 {[%emt 0:00:49]} (23... Rb4 24. e4 Qd8 25. a3) (23... Bf8 $16 24. e4 (24. Qxc4 Qxc4 25. Rxc4 Rb2 $16) 24... Qg5 25. Qxc4 Bxc5) 24. e4 $18 {[%emt 0:01:39][%cal Be3e4,Be4e5][%mdl 32]} (24. Qxc4 $6 Qxc4 25. Rxc4 Bf8 $16) 24... Qg5 {[%emt 0:00:18] [#]} (24... Qd8 {keeps fighting.} 25. e5 (25. Qxc4 Rb4 $14) 25... Qd5) 25. e5 $1 {[%emt 0:00:26]} (25. Qxc4 Rb4 26. Qc2 (26. Qc3 Bxd4 27. Rxd4 Rxd4 $11) 26... Bxd4 $14) 25... a4 {[%emt 0:04:02]} 26. a3 {[%emt 0:04:05]} ({Don't play} 26. Nxa4 $6 Bf8 27. Nc3 (27. Qxc4 Rb4 $17) 27... Be6 $16) (26. Qxc4 a3 27. Re1 Bf5 28. Nxf5 Qxf5 $18) 26... Ra7 {[%emt 0:08:56]} 27. Qxc4 {[%emt 0:44:08] Weighted Error Value: White=0.04 (flawless) /Black=0.23 (precise) .  Mistake:       	---       	Black=3      Inaccurate:     	White=1     	Black=1      OK:         	White=11    	Black=6      Strong:       	White=1     	---} ({Don't take} 27. Nxa4 Qd8 28. Nb2 (28. Qxc4 Be6 $14) 28... Rxb2 29. Qxb2 Be6 $18) 1-0

[Event "21st Bangkok CC Open 2024"]
[Site "Bangkok"]
[Date "2024.04.20"]
[Round "8.5"]
[White "Lalit Babu M R"]
[Black "Pham Tran Gia Phuc"]
[Result "1/2-1/2"]
[ECO "E39"]
[WhiteElo "2508"]
[BlackElo "2423"]
[Annotator "TA"]
[PlyCount "120"]
[EventDate "2024.04.13"]
[EventType "swiss"]
[EventCountry "THA"]
[SourceTitle "playchess.com"]
[Source "ChessBase"]
[SourceQuality "1"]
[TimeControl "40/5400+30:1800+30"]

{[%evp 57,120,-6,-6,-6,5,18,66,44,30,8,8,16,27,0,107,109,186,169,195,201,186,0,88,95,107,40,33,38,40,31,36,33,58,29,30,0,0,0,0,0,0,0,0,0,8,8,8,8,8,8,8,8,8,8,44,8,8,8,8,8,8,0,8,0,8]} 1. d4 {[%emt 0:05:41]} Nf6 {[%emt 0:00:11]} 2. c4 {[%emt 0:00:06]} e6 {[%emt 0:00:05]} 3. Nc3 {[%emt 0:00:04]} Bb4 {[%emt 0:00:06]} 4. Qc2 {[%emt 0:00:05]} c5 {[%emt 0:00:08]} 5. dxc5 {[%emt 0:00:07]} O-O {[%emt 0:00:07]} 6. a3 {[%emt 0:00:24]} Bxc5 {[%emt 0:00:06]} 7. Nf3 {[%emt 0:00:06]} b6 {[%emt 0:00:05]} 8. Bf4 {[%emt 0:00:55]} Bb7 {[%emt 0:00:08]} 9. Rd1 {[%emt 0:00:07]} Nc6 {[%emt 0:00:10]} 10. e3 {[%emt 0:00:04]} Nh5 {[%emt 0:00:15]} 11. Bg5 {[%emt 0:00:10]} Be7 {[%emt 0:00:18]} 12. h4 {[%emt 0:00:08]} Nf6 {[%emt 0:07:00]} 13. Bxf6 {[%emt 0:08:57]} Bxf6 {[%emt 0:00:16]} 14. Ng5 {[%emt 0:00:03]} g6 {[%emt 0:05:32]} 15. Nge4 {[%emt 0:10:56]} Bg7 {[%emt 0:05:34]} 16. h5 {[%emt 0:00:46]} Qe7 {[%emt 0:00:40]} 17. hxg6 {[%emt 0:03:36]} hxg6 {[%emt 0:05:32]} 18. f4 {[%emt 0:05:20]} f5 {[%emt 0:06:47]} 19. Nd6 {[%emt 0:07:35]} Nd4 {[%emt 0:17:56]} 20. Rxd4 {[%emt 0:01:10]} Bxd4 {[%emt 0:00:09]} 21. Nxb7 {[%emt 0:00:05]} Bxe3 {[%emt 0:00:29]} 22. Ne2 {[%emt 0:01:38]} e5 {[%emt 0:08:01]} 23. g4 {[%emt 0:25:19]} d5 {[%emt 0:11:02]} 24. Bg2 {[%emt 0:03:50]} d4 {[%emt 0:09:11]} 25. gxf5 {[%emt 0:03:00]} exf4 {[%emt 0:05:43]} 26. c5 {[%emt 0:06:54]} Kg7 {[%emt 0:03:22]} 27. Nd6 {[%emt 0:01:15]} Rh8 {[%emt 0:00:26]} 28. Rf1 {[%emt 0:00:07]} Raf8 {[%emt 0:05:52]} 29. Qe4 {[%emt 0:02:32]} Qxe4 {[%emt 0:01:23]} 30. Bxe4 {[%emt 0:00:04]} bxc5 {[%emt 0:00:46]} 31. fxg6 {[%emt 0:01:12]} Rh5 {[%emt 0:01:37]} (31... f3 $11) 32. Kd1 {[%emt 0:00:35]} d3 {[%emt 0:03:44]} 33. Nc3 {[%emt 0:00:23]} (33. Bxd3 $2 Rd5 34. Nf5+ Rfxf5 $19) (33. Nc1 $5) 33... Rh2 {[%emt 0:00:42]} 34. Nc4 $1 {[%emt 0:01:56]} (34. Bxd3 $2 Rd2+ (34... Rxb2 $2 35. Nf5+ Rxf5 36. Bxf5 $18) 35. Ke1 Rxd3 $19) (34. Nf5+ $2 Rxf5 35. Bxf5 c4 $19) 34... Re8 $1 {[%emt 0:03:34]} 35. Re1 {[%emt 0:04:41]} (35. Bxd3 $2 Rd8 36. Nxe3 Rxd3+ 37. Kc1 fxe3 $19 (37... Rxe3 $2 38. Rxf4 Re1+ 39. Nd1 $19)) 35... d2 {[%emt 0:00:27] [#]} (35... Bf2 $11 36. Rf1 Be3) 36. Rf1 $1 $16 {[%emt 0:00:18]} (36. Nxe3 $2 dxe1=Q+ (36... dxe1=R+ $2 37. Kxe1 fxe3 38. b3 $19) 37. Kxe1 fxe3 $19) 36... Re6 {[%emt 0:00:33]} (36... Bf2 $16 37. a4 (37. Nxd2 Bd4 $16) 37... Re7) 37. Bd3 {[%emt 0:01:37]} (37. Nxe3 $6 fxe3 38. Rf7+ Kh8 $14) 37... Bd4 {[%emt 0:00:26]} 38. Ne2 {[%emt 0:01:01]} (38. Rxf4 $2 Re1+ 39. Kc2 d1=Q#) (38. Nxd2 $6 Rd6 39. Nc4 (39. Rxf4 $2 Bxc3 40. Rf7+ Kg8 $19) 39... Bxc3 40. Nxd6 Rd2+ 41. Kc1 Rxd3 42. Ne8+ (42. Rxf4 Bd2+ 43. Kc2 Rxd6 $15) 42... Kxg6 $16) 38... Be3 {[%emt 0:00:31]} 39. Nc3 {[%emt 0:02:33]} (39. Nxf4 $2 Bxf4 40. Bf5 Re8 $19) (39. Nxd2 $2 Rd6 40. Ke1 (40. Kc2 $2 Rxe2 41. Bxe2 Rxd2+ 42. Kc3 Rxe2 $19) 40... Rxd3 $19) (39. Kc2 $18 {is more deadly.}) 39... Bd4 $1 $16 {[%emt 0:00:12]} 40. Ne4 {[%emt 0:03:27]} (40. Rxf4 $2 Re1+ 41. Kc2 d1=Q#) 40... Rxg6 {[%emt 0:00:25]} 41. Nexd2 {[%emt 0:31:24]} ({Much weaker is} 41. Ncxd2 Bxb2 42. Rxf4 (42. Nxc5 Rc6 $11) 42... Rg1+ 43. Nf1 (43. Kc2 Bxa3 44. Bc4 Bb4 $11) 43... Bxa3 $11) (41. Rxf4 $16 Rh1+ 42. Bf1 (42. Kxd2 Rg2+ 43. Be2 Rhh2 $17) 42... Bxb2 43. Nxb2) 41... Rg1 $14 {[%emt 0:30:44]} 42. Rxg1+ {[%emt 0:00:00]} Bxg1 {[%emt 0:00:00]} 43. Nf3 {[%emt 0:00:00]} Rg2 {[%emt 0:00:00]} 44. Be4 {[%emt 0:00:00]} Be3 {[%emt 0:00:00]} 45. Ne1 {[%emt 0:00:00]} Rh2 {[%emt 0:00:00]} 46. Nxe3 {[%emt 0:00:00]} fxe3 {[%emt 0:00:00]} 47. Ng2 {[%emt 0:00:00]} Kf6 {[%emt 0:00:00]} 48. Ke2 {[%emt 0:00:00]} (48. Nxe3 Rxb2 49. Bd5 Ke7) 48... Ke5 {[%emt 0:00:00]} 49. Kxe3 {[%emt 0:00:00]} (49. Kd3 {is more complex.} Rh3 50. Ba8 c4+ 51. Kxc4 e2 52. Ne1) 49... Rh1 {[%emt 0:00:00]} 50. a4 {[%emt 0:00:00]} Ra1 {[%emt 0:00:00]} 51. Bc2 {[%emt 0:00:00]} Ra2 {[%emt 0:00:00]} 52. Ne1 {[%emt 0:00:00]} c4 $1 {[%emt 0:00:00]} 53. Kd2 {[%emt 0:00:00]} Rxb2 {[%emt 0:00:00]} 54. Kc3 {[%emt 0:00:00]} Rb8 {[%emt 0:00:00]} 55. Kxc4 {[%emt 0:00:00]} Kd6 {[%emt 0:00:00]} 56. Nd3 {[%emt 0:00:00]} Rc8+ {[%emt 0:00:00]} 57. Kb3 {[%emt 0:00:00]} Rb8+ {[%emt 0:00:00]} 58. Kc3 {[%emt 0:00:00]} Rc8+ {[%emt 0:00:00]} 59. Kb3 {[%emt 0:00:00]} Rb8+ {[%emt 0:00:00]} 60. Kc3 {[%emt 0:00:00]} Rc8+ {[%emt 0:10:15]} 1/2-1/2

[Event "21st Bangkok CC Open 2024"]
[Site "Bangkok"]
[Date "2024.04.20"]
[Round "8.6"]
[White "Sengupta, Deep"]
[Black "Danilenko, Dmitriy"]
[Result "1/2-1/2"]
[ECO "D02"]
[WhiteElo "2500"]
[BlackElo "2400"]
[Annotator "TA"]
[PlyCount "58"]
[EventDate "2024.04.13"]
[EventType "swiss"]
[EventCountry "THA"]
[SourceTitle "playchess.com"]
[Source "ChessBase"]
[SourceQuality "1"]
[TimeControl "40/5400+30:1800+30"]

{[%evp 9,58,8,19,16,24,0,0,0,0,7,4,0,0,0,0,0,0,0,0,-10,-10,-19,-1,-18,-10,-16,-12,-15,0,0,0,-14,-15,0,-6,-18,-7,-3,0,0,0,0,0,0,0,0,0,0,0,0,0]} 1. d4 {[%emt 0:01:35]} d5 {[%emt 0:00:11]} 2. Bf4 {[%emt 0:00:07]} Nf6 {[%emt 0:00:26]} 3. e3 {[%emt 0:00:06]} e6 {[%emt 0:00:12]} 4. Nf3 {[%emt 0:00:31]} c5 {[%emt 0:00:06]} 5. Nbd2 {[%emt 0:00:20]} Bd6 {[%emt 0:00:11]} 6. Bb5+ {[%emt 0:03:07]} Nc6 {[%emt 0:00:43]} 7. dxc5 {[%emt 0:00:46]} Bxc5 {[%emt 0:00:29] The position is equal.} 8. O-O {[%emt 0:00:09]} O-O {[%emt 0:00:29]} 9. c4 {[%emt 0:01:45]} Qb6 {[%emt 0:02:17]} 10. a3 {[%emt 0:18:08]} Be7 {[%emt 0:00:44]} 11. b4 {[%emt 0:06:05]} a5 {[%emt 0:02:09]} 12. bxa5 {[%emt 0:14:33]} Qxa5 {[%emt 0:04:55]} 13. a4 {[%emt 0:01:07]} Rd8 {[%emt 0:03:51]} 14. Qc2 {[%emt 0:08:29]} Bd7 {[%emt 0:03:46]} 15. Nb3 {[%emt 0:10:14]} Qa7 {[%emt 0:01:53]} 16. Ne5 {[%emt 0:05:25]} Be8 {[%emt 0:34:11]} 17. Rfc1 {[%emt 0:06:05]} Nb4 {[%emt 0:09:11][%cal Bc6b4,Bb4d5,Bd5e3][%mdl 32]} 18. Qe2 {[%emt 0:01:30]} dxc4 {[%emt 0:00:21]} 19. Qxc4 {[%emt 0:05:12]} Nbd5 {[%emt 0:01:14]} 20. Bg3 {[%emt 0:01:51]} Nh5 {[%emt 0:04:08]} 21. Bxe8 {[%emt 0:08:11]} Rxe8 {[%emt 0:00:13]} 22. Nd4 {[%emt 0:05:13][%cal Od4e6]} Nxg3 {[%emt 0:02:10]} 23. hxg3 {[%emt 0:00:03]} Bf6 {[%emt 0:03:33]} 24. Ndf3 {[%emt 0:00:31]} Nxe3 {[%emt 0:17:27]} 25. Qc7 {[%emt 0:00:27]} Re7 {[%emt 0:00:13]} 26. Qc8+ {[%emt 0:00:11]} Re8 $1 {[%emt 0:00:05]} 27. Qc7 {[%emt 0:00:03]} Re7 {[%emt 0:02:57]} 28. Qc8+ {[%emt 0:01:48]} Re8 $1 {[%emt 0:00:06]} 29. Qc7 {[%emt 0:00:29]} Re7 {[%emt 0:00:11] An uneventful encounter.   Weighted Error Value: White=0.02 (flawless) /Black=0.03 (flawless) .  OK:         	White=16    	Black=12     Best:        	---       	Black=1      Strong:       	---       	Black=2} 1/2-1/2